bitfinex-derivatives/quotes_BTCF0:USTF0_20241125
["timestamp","ask_amount","ask_price","bid_price","bid_amount"]
[1732523909004,0.083637,98249.0,98248.0,0.050838]
[1732523910025,0.17507138,98249.0,98248.0,0.29327123]
[1732523910304,0.083637,98249.0,98248.0,0.050838]
[1732523910511,0.083637,98249.0,98248.0,0.29324612]
[1732523910703,0.17505217,98249.0,98248.0,0.050838]
[1732523911604,0.083637,98249.0,98248.0,0.050838]
[1732523912210,0.18522238,98249.0,98248.0,0.050838]
[1732523912510,0.09380721,98249.0,98248.0,0.050838]
[1732523913172,0.18522238,98249.0,98248.0,0.050838]
[1732523913513,0.09380721,98249.0,98248.0,0.050838]
[1732523916505,0.10339471,98249.0,98248.0,0.050838]
[1732523917114,0.10351451,98249.0,98248.0,0.050838]
[1732523917613,0.10357575,98249.0,98248.0,0.050838]
[1732523919110,0.25606028,98249.0,98248.0,0.050838]
[1732523920112,0.25586202,98249.0,98248.0,0.050838]
[1732523920418,0.10357575,98249.0,98248.0,0.050838]
[1732523920912,0.10358165,98249.0,98248.0,0.050838]
[1732523921544,0.0939554,98249.0,98248.0,0.050838]
[1732523923417,0.10350695,98249.0,98248.0,0.050838]
[1732523923809,0.25579322,98249.0,98248.0,0.050838]
[1732523924010,0.10350695,98249.0,98248.0,0.050838]
[1732523924215,0.10350695,98249.0,98248.0,0.23257328]
[1732523924416,0.10374031,98249.0,98248.0,0.23257328]
[1732523924614,0.10374031,98249.0,98248.0,0.050838]
[1732523926312,0.10374031,98249.0,98248.0,0.23270449]
[1732523926620,0.10374031,98249.0,98248.0,0.050838]
[1732523928019,0.09401774,98249.0,98248.0,0.050838]
[1732523928219,0.10369988,98249.0,98248.0,0.050838]
[1732523928626,0.05286288,98249.0,98248.0,0.29324612]
[1732523928927,0.11145851,98249.0,98248.0,0.050838]
[1732523929221,0.02006288,98249.0,98248.0,0.050838]
[1732523929945,0.11145851,98249.0,98248.0,0.050838]
[1732523930224,0.02006288,98249.0,98248.0,0.050838]
[1732523930425,0.11145851,98249.0,98248.0,0.050838]
[1732523931126,0.02006288,98249.0,98248.0,0.050838]
[1732523931824,0.141965,98249.0,98248.0,0.050838]
[1732523932063,0.14196436,98249.0,98248.0,0.050838]
[1732523933533,0.02006288,98249.0,98248.0,0.050838]
[1732523934160,0.02006288,98249.0,98248.0,0.23288257]
[1732523934528,0.02006288,98249.0,98248.0,0.050838]
[1732523934836,0.02006288,98249.0,98248.0,0.23291627]
[1732523935419,0.0103657,98249.0,98248.0,0.050838]
[1732523935620,0.02025498,98249.0,98248.0,0.050838]
[1732523939131,0.02025498,98249.0,98248.0,0.35401127]
[1732523939429,0.07109198,98249.0,98248.0,0.050838]
[1732523939635,0.16257654,98249.0,98248.0,0.050838]
[1732523940332,0.07109198,98249.0,98248.0,0.050838]
[1732523940533,0.16257654,98249.0,98248.0,0.050838]
[1732523941627,0.07109198,98249.0,98248.0,0.050838]
[1732523941833,0.07109198,98249.0,98248.0,0.35401127]
[1732523942233,0.07109198,98249.0,98248.0,0.63897457]
[1732523942735,0.02025498,98249.0,98248.0,0.63897457]
[1732523943037,0.02001142,98249.0,98248.0,0.35401127]
[1732523943331,0.02001142,98249.0,98248.0,0.64056938]
[1732523944331,0.02001142,98249.0,98248.0,0.35401127]
[1732523944725,0.02001142,98249.0,98248.0,0.64052518]
[1732523945533,0.02001142,98249.0,98248.0,0.35401127]
[1732523946139,0.02001142,98249.0,98248.0,0.64042637]
[1732523946346,0.02001142,98249.0,98248.0,0.23304325]
[1732523946643,0.02009863,98249.0,98248.0,0.23304325]
[1732523947238,0.02009863,98249.0,98248.0,0.050838]
[1732523947444,0.03700887,98249.0,98248.0,0.050838]
[1732523947645,0.05305304,98249.0,98248.0,0.050838]
[1732523947838,0.05305304,98249.0,98248.0,0.23304325]
[1732523948341,0.0361428,98249.0,98248.0,0.23304325]
[1732523948538,0.0361428,98249.0,98248.0,0.050838]
[1732523948734,0.02009863,98249.0,98248.0,0.23306796]
[1732523948939,0.02009863,98249.0,98248.0,0.050838]
[1732523949836,0.02009863,98249.0,98248.0,0.23306796]
[1732523950641,0.1723849,98249.0,98248.0,0.050838]
[1732523950837,0.02009863,98249.0,98248.0,0.050838]
[1732523951336,0.07093563,98249.0,98248.0,0.23306796]
[1732523952133,0.2232219,98249.0,98248.0,0.23306796]
[1732523952341,0.12038113,98249.0,98248.0,0.050838]
[1732523953336,0.12063975,98249.0,98248.0,0.050838]
[1732523954144,0.07119425,98249.0,98248.0,0.050838]
[1732523955643,0.08722777,98249.0,98248.0,0.050838]
[1732523956737,0.07119425,98249.0,98248.0,0.050838]
[1732523957838,0.08735211,98249.0,98248.0,0.050838]
[1732523958445,0.08735211,98249.0,98248.0,0.35401127]
[1732523958644,0.08735211,98249.0,98248.0,0.050838]
[1732523958848,0.07130315,98249.0,98248.0,0.050838]
[1732523959241,0.07130315,98249.0,98248.0,0.63695056]
[1732523959939,0.07130315,98249.0,98248.0,0.35401127]
[1732523960443,0.07130315,98249.0,98248.0,0.58583862]
[1732523960657,0.050839,98245.0,98243.0,0.30317327]
[1732523960838,0.10091613,98244.0,98240.0,0.30317327]
[1732523961038,0.3608,98241.0,98239.0,0.35401527]
[1732523961246,0.03651613,98240.0,98239.0,0.35401527]
[1732523961462,0.03651613,98240.0,98239.0,0.050842]
[1732523961463,0.03647659,98240.0,98239.0,0.050842]
[1732523961646,0.0915058,98240.0,98239.0,0.050842]
[1732523961841,0.10189706,98240.0,98239.0,0.050842]
[1732523962044,0.02033205,98240.0,98239.0,0.050842]
[1732523963553,0.43197405,98240.0,98239.0,0.050842]
[1732523966344,0.52341942,98240.0,98239.0,0.050842]
[1732523968046,0.43197405,98240.0,98239.0,0.050842]
[1732523970245,0.050843,98238.0,98237.0,0.18242145]
[1732523970453,0.07117505,98238.0,98237.0,0.18242145]
[1732523971551,0.050844,98235.0,98234.0,0.03897834]
[1732523971748,0.050848,98229.0,98228.0,0.2432286]
[1732523972008,0.51964659,98229.0,98228.0,0.18245682]
[1732523972146,0.44849378,98229.0,98228.0,0.23330482]
[1732523972349,0.03684578,98229.0,98228.0,0.050848]
[1732523972856,0.1426208,98229.0,98228.0,0.23330482]
[1732523973061,0.1426208,98229.0,98228.0,0.050848]
[1732523973062,0.03735584,98229.0,98228.0,0.050848]
[1732523973450,0.03735584,98229.0,98228.0,0.23323578]
[1732523973451,0.05322445,98229.0,98228.0,0.23323578]
[1732523973757,0.05322443,98229.0,98228.0,0.23323578]
[1732523974252,0.03735584,98229.0,98228.0,0.2332395]
[1732523975664,0.03735584,98229.0,98228.0,0.050848]
[1732523975957,0.03735584,98229.0,98228.0,0.23325157]
[1732523976347,0.03735584,98229.0,98228.0,0.050848]
[1732523976348,0.0380329,98229.0,98228.0,0.050848]
[1732523980156,0.0380329,98229.0,98224.0,0.03964649]
[1732523980157,0.03719536,98229.0,98224.0,0.03964649]
[1732523980350,0.03719536,98228.0,98223.0,0.30317327]
[1732523980656,0.03719536,98227.0,98223.0,0.30317327]
[1732523980856,0.03719536,98226.0,98224.0,0.05085]
[1732523981061,0.03719536,98225.0,98224.0,0.05085]
[1732523981358,0.03719536,98225.0,98224.0,0.35402327]
[1732523982068,0.0207676,98225.0,98224.0,0.35402327]
[1732523983169,0.01026735,98225.0,98224.0,0.33241788]
[1732523983357,0.01026735,98225.0,98224.0,0.66914615]
[1732523984550,0.01026735,98225.0,98224.0,0.97458615]
[1732523985452,0.01026735,98225.0,98224.0,0.97471663]
[1732523987662,0.01026735,98225.0,98224.0,0.97479105]
[1732523987865,0.01026735,98225.0,98224.0,1.33559105]
[1732523991164,0.01026008,98225.0,98224.0,1.33559105]
[1732523992362,0.01026008,98225.0,98224.0,1.36396279]
[1732523992567,0.01026008,98225.0,98224.0,1.49732279]
[1732523992863,0.01026008,98225.0,98224.0,1.13261782]
[1732523994568,0.01026008,98225.0,98224.0,0.82717782]
[1732523994971,0.01026008,98225.0,98224.0,1.13261782]
[1732523995670,0.01026008,98225.0,98224.0,0.82717782]
[1732523995872,0.01026008,98225.0,98224.0,1.13261782]
[1732523996167,0.01026008,98225.0,98224.0,0.82717782]
[1732523996571,0.01026008,98225.0,98224.0,1.13261782]
[1732523996961,0.01026008,98225.0,98224.0,0.82717782]
[1732523997873,0.01026008,98225.0,98224.0,1.13261782]
[1732523998074,0.01026008,98225.0,98224.0,0.82717782]
[1732523998268,0.01026008,98225.0,98224.0,1.13261782]
[1732523998774,0.01030259,98225.0,98224.0,1.13261782]
[1732523999170,0.02064355,98225.0,98224.0,0.82717782]
[1732523999474,0.02064346,98225.0,98224.0,0.82717782]
[1732523999673,0.01030259,98225.0,98224.0,0.82717782]
[1732524001071,0.01030259,98225.0,98224.0,1.46625189]
[1732524001280,0.01030259,98225.0,98224.0,1.16081189]
[1732524002275,0.0103479,98225.0,98224.0,1.16081189]
[1732524003670,0.0103479,98225.0,98224.0,1.16017586]
[1732524003976,0.0103479,98225.0,98224.0,0.82717782]
[1732524004374,0.02070471,98225.0,98224.0,0.82717782]
[1732524004782,0.0103479,98225.0,98224.0,0.82717782]
[1732524004977,0.0103479,98225.0,98224.0,1.16077398]
[1732524005181,0.0103479,98225.0,98224.0,1.15849457]
[1732524005478,0.0103479,98225.0,98224.0,0.82488924]
[1732524005779,0.032,98239.0,98224.0,0.82488924]
[1732524005978,0.032,98239.0,98238.0,0.050843]
[1732524006278,0.05259788,98239.0,98238.0,0.050843]
[1732524006487,0.05259813,98239.0,98238.0,0.050843]
[1732524007477,0.05259813,98239.0,98238.0,0.29403614]
[1732524007878,0.04233867,98239.0,98238.0,0.050843]
[1732524008180,0.14399056,98239.0,98238.0,0.050843]
[1732524008383,0.14401046,98239.0,98238.0,0.050843]
[1732524008881,0.14401046,98239.0,98238.0,0.08982852]
[1732524009081,0.05259204,98239.0,98238.0,0.08982852]
[1732524009379,0.05259204,98239.0,98238.0,0.33302166]
[1732524010279,0.10343404,98239.0,98238.0,0.28217866]
[1732524010477,0.050845,98234.0,98233.0,0.050845]
[1732524010678,0.42189837,98234.0,98233.0,0.050845]
[1732524011181,0.37105337,98234.0,98233.0,0.33330919]
[1732524011484,0.49293254,98234.0,98233.0,0.08983838]
[1732524011880,0.37105337,98234.0,98233.0,0.08983838]
[1732524012374,0.49293254,98234.0,98233.0,0.08983838]
[1732524012888,0.37105337,98234.0,98233.0,0.08983838]
[1732524013485,0.37065159,98234.0,98233.0,0.08983838]
[1732524013792,0.37065079,98234.0,98233.0,0.08983838]
[1732524014374,0.37065079,98234.0,98233.0,0.37688184]
[1732524015179,0.3608,98234.0,98233.0,0.37688184]
[1732524017787,0.032,98239.0,98233.0,0.32603684]
[1732524017987,0.032,98239.0,98238.0,0.050843]
[1732524018300,0.032,98239.0,98238.0,0.33765691]
[1732524019367,0.032,98239.0,98238.0,0.37739916]
[1732524019990,0.032,98239.0,98238.0,0.33765691]
[1732524020292,0.04153706,98239.0,98238.0,0.33765691]
[1732524020886,0.032,98239.0,98238.0,0.33765691]
[1732524021181,0.0415371,98239.0,98238.0,0.33765691]
[1732524021439,0.0415371,98239.0,98238.0,0.050843]
[1732524021587,0.0415371,98239.0,98238.0,0.29428688]
[1732524022094,0.0415371,98239.0,98238.0,0.050843]
[1732524023091,0.16349819,98239.0,98238.0,0.050843]
[1732524023893,0.0415371,98239.0,98238.0,0.050843]
[1732524025483,0.0415371,98239.0,98238.0,0.29431237]
[1732524025717,0.0415371,98239.0,98238.0,0.050843]
[1732524025890,0.16350249,98239.0,98238.0,0.050843]
[1732524026090,0.0415371,98239.0,98238.0,0.23346318]
[1732524026390,0.0415371,98239.0,98238.0,0.23347256]
[1732524026599,0.0415371,98239.0,98238.0,0.050843]
[1732524026600,0.0923791,98239.0,98238.0,0.050843]
[1732524027092,0.14183257,98239.0,98238.0,0.050843]
[1732524027297,0.24483289,98239.0,98238.0,0.050843]
[1732524027593,0.0415371,98239.0,98238.0,0.050843]
[1732524028593,0.04168991,98239.0,98238.0,0.050843]
[1732524029396,0.04168991,98239.0,98238.0,0.23342638]
[1732524029599,0.04168991,98239.0,98238.0,0.050843]
[1732524031793,0.13315119,98239.0,98238.0,0.050843]
[1732524033891,0.04168991,98239.0,98238.0,0.050843]
[1732524034098,0.13315789,98239.0,98238.0,0.050843]
[1732524034493,0.04168991,98239.0,98238.0,0.050843]
[1732524035206,0.13315789,98239.0,98238.0,0.050843]
[1732524035602,0.04168991,98239.0,98238.0,0.050843]
[1732524036108,0.13315789,98239.0,98238.0,0.050843]
[1732524037501,0.14919797,98239.0,98238.0,0.050843]
[1732524037896,0.15932722,98239.0,98238.0,0.050843]
[1732524038907,0.14919797,98239.0,98238.0,0.050843]
[1732524039098,0.05772999,98239.0,98238.0,0.050843]
[1732524039503,0.04192797,98239.0,98238.0,0.050843]
[1732524040003,0.13340682,98239.0,98238.0,0.050843]
[1732524040610,0.032,98239.0,98238.0,0.050843]
[1732524040904,0.032,98239.0,98238.0,0.35514864]
[1732524042610,0.04153784,98239.0,98238.0,0.35514864]
[1732524043603,0.032,98239.0,98238.0,0.35514864]
[1732524043804,0.032,98239.0,98238.0,0.050843]
[1732524044111,0.032,98239.0,98238.0,0.23340889]
[1732524044306,0.032,98239.0,98238.0,0.050843]
[1732524047836,0.36140001,98242.0,98241.0,0.050841]
[1732524048167,0.3608,98242.0,98241.0,0.050841]
[1732524052019,0.3608,98242.0,98241.0,0.33930264]
[1732524054825,0.3608,98242.0,98241.0,0.3392652]
[1732524056711,0.3703538,98242.0,98241.0,0.3392652]
[1732524058919,0.3703538,98242.0,98241.0,0.050841]
[1732524061424,0.3608,98242.0,98241.0,0.050841]
[1732524061625,0.3704939,98242.0,98241.0,0.050841]
[1732524062821,0.1316481,98242.0,98241.0,0.050841]
[1732524063025,0.0096939,98242.0,98241.0,0.183961]
[1732524066927,0.0096939,98242.0,98241.0,0.46700823]
[1732524067325,0.0096939,98242.0,98241.0,0.33388823]
[1732524067628,0.0096939,98242.0,98241.0,0.46692823]
[1732524068933,0.09143014,98250.0,98249.0,0.050837]
[1732524069229,0.10126936,98250.0,98249.0,0.050837]
[1732524070938,0.00983922,98250.0,98249.0,0.35481752]
[1732524071199,0.00983922,98250.0,98249.0,0.33328959]
[1732524071433,0.00983922,98250.0,98249.0,0.35476572]
[1732524071634,0.09143014,98255.0,98249.0,0.58635307]
[1732524071837,0.09143014,98255.0,98254.0,0.050835]
[1732524072135,0.09143014,98256.0,98254.0,0.050835]
[1732524072634,0.00959074,98255.0,98254.0,0.050835]
[1732524074436,0.10099617,98255.0,98254.0,0.050835]
[1732524076130,0.00959074,98255.0,98254.0,0.050835]
[1732524076632,0.10100156,98255.0,98254.0,0.050835]
[1732524076833,0.00959074,98255.0,98254.0,0.050835]
[1732524078338,0.10100804,98255.0,98254.0,0.050835]
[1732524079837,0.0914173,98256.0,98254.0,0.050835]
[1732524080038,0.0914173,98256.0,98255.0,0.24313897]
[1732524080755,0.0329,98257.0,98256.0,0.050829]
[1732524080936,0.04242957,98257.0,98256.0,0.050829]
[1732524082148,0.09187049,98257.0,98256.0,0.050829]
[1732524082734,0.08234092,98257.0,98256.0,0.050829]
[1732524083151,0.04944092,98257.0,98256.0,0.050829]
[1732524083535,0.04944092,98257.0,98256.0,0.05095954]
[1732524083758,0.15236778,98257.0,98256.0,0.18395954]
[1732524083947,0.15236778,98262.0,98260.0,0.050826]
[1732524084152,0.15236778,98263.0,98262.0,0.050825]
[1732524084444,0.03187517,98268.0,98259.0,0.3608]
[1732524084445,0.15236778,98265.0,98259.0,0.3608]
[1732524084644,0.15236778,98265.0,98264.0,0.050824]
[1732524084846,0.16190377,98265.0,98264.0,0.050824]
[1732524085238,0.16181782,98265.0,98264.0,0.050824]
[1732524086153,0.00953599,98265.0,98264.0,0.050824]
[1732524087449,0.15228183,98267.0,98259.0,0.3608]
[1732524087645,0.15228183,98267.0,98266.0,0.050823]
[1732524087944,0.16181101,98267.0,98266.0,0.050823]
[1732524089149,0.00952918,98267.0,98266.0,0.050823]
[1732524089451,0.00952918,98267.0,98266.0,0.29373255]
[1732524090050,0.00952918,98267.0,98266.0,0.050823]
[1732524090251,0.00952918,98267.0,98266.0,0.29371986]
[1732524090447,0.00952918,98267.0,98266.0,0.33256187]
[1732524091151,0.10086777,98267.0,98266.0,0.08966501]
[1732524091456,0.10087076,98267.0,98266.0,0.08966501]
[1732524092855,0.10086924,98267.0,98266.0,0.08966501]
[1732524093755,0.00953217,98267.0,98266.0,0.33257999]
[1732524094653,0.00953217,98267.0,98266.0,0.08966501]
[1732524095287,0.00960521,98267.0,98266.0,0.08966801]
[1732524096251,0.00960521,98267.0,98266.0,0.33256706]
[1732524097166,0.00960521,98267.0,98266.0,0.08966801]
[1732524097547,0.16188704,98267.0,98266.0,0.08966801]
[1732524104168,0.00960521,98267.0,98266.0,0.08966801]
[1732524109267,0.00963715,98267.0,98266.0,0.08966801]
[1732524109853,0.03187517,98268.0,98266.0,0.03884201]
[1732524110061,0.03187517,98268.0,98267.0,0.050825]
[1732524110264,0.04151352,98268.0,98267.0,0.050825]
[1732524114873,0.04291336,98268.0,98267.0,0.050825]
[1732524115660,0.04291336,98268.0,98267.0,0.29407371]
[1732524117668,0.03327501,98268.0,98267.0,0.29407371]
[1732524117970,0.04299004,98268.0,98267.0,0.29407371]
[1732524119876,0.04299004,98268.0,98267.0,0.050825]
[1732524120781,0.04299004,98268.0,98267.0,0.33487977]
[1732524121165,0.04286323,98268.0,98267.0,0.33487977]
[1732524123067,0.13439284,98268.0,98267.0,0.33487977]
[1732524123268,0.04286323,98268.0,98267.0,0.33487977]
[1732524123827,0.13439583,98268.0,98267.0,0.33487977]
[1732524124477,0.13439583,98268.0,98267.0,0.33578901]
[1732524124777,0.12480761,98268.0,98267.0,0.33578901]
[1732524124968,0.13436953,98268.0,98267.0,0.33578901]
[1732524128275,0.04283693,98268.0,98267.0,0.33578901]
[1732524128870,0.03327501,98268.0,98267.0,0.33578901]
[1732524129083,0.0429009,98268.0,98267.0,0.33578901]
[1732524134470,0.0429009,98268.0,98267.0,0.050825]
[1732524134671,0.0429009,98268.0,98267.0,0.33397632]
[1732524134967,0.0429009,98268.0,98267.0,0.23328407]
[1732524135169,0.0429009,98268.0,98267.0,0.050825]
[1732524135372,0.08270826,98268.0,98267.0,0.050825]
[1732524135573,0.08270826,98268.0,98267.0,0.23328379]
[1732524135876,0.08270826,98268.0,98267.0,0.050825]
[1732524136472,0.092264,98268.0,98267.0,0.050825]
[1732524137277,0.143089,98268.0,98267.0,0.050825]
[1732524137572,0.13353326,98268.0,98267.0,0.050825]
[1732524137788,0.14310074,98268.0,98267.0,0.050825]
[1732524138370,0.09227574,98268.0,98267.0,0.050825]
[1732524139377,0.14310074,98268.0,98267.0,0.050825]
[1732524139984,0.14309676,98268.0,98267.0,0.050825]
[1732524140374,0.14314013,98268.0,98267.0,0.050825]
[1732524141473,0.14314013,98268.0,98267.0,0.23333977]
[1732524141875,0.09370688,98268.0,98267.0,0.33448999]
[1732524143375,0.08410001,98268.0,98267.0,0.33448999]
[1732524143880,0.08410001,98268.0,98267.0,0.28366499]
[1732524144277,0.08410001,98268.0,98267.0,0.3042432]
[1732524144479,0.08410001,98268.0,98266.0,0.3042432]
[1732524144684,0.08410001,98268.0,98256.0,0.00013054]
[1732524144685,0.050828,98262.0,98261.0,0.050828]
[1732524144979,0.05222784,98262.0,98261.0,0.33688424]
[1732524145190,0.05222784,98262.0,98261.0,0.64114398]
[1732524145379,0.08322784,98262.0,98261.0,0.050828]
[1732524145579,0.08322784,98262.0,98261.0,0.64123076]
[1732524145887,0.17472323,98262.0,98261.0,0.33697102]
[1732524146391,0.17471239,98262.0,98261.0,0.33697102]
[1732524146776,0.08322784,98262.0,98261.0,0.33697102]
[1732524147484,0.17471239,98262.0,98261.0,0.050828]
[1732524147782,0.08322784,98262.0,98260.0,0.30413395]
[1732524147985,0.00139984,98261.0,98256.0,0.00013054]
[1732524148183,0.050831,98260.0,98259.0,0.30411549]
[1732524148678,0.050831,98260.0,98259.0,0.28912116]
[1732524148998,0.05223084,98260.0,98259.0,0.28912116]
[1732524149291,0.05223084,98260.0,98259.0,0.59405418]
[1732524149487,0.05363068,98260.0,98258.0,0.35487826]
[1732524150042,0.20618305,98260.0,98258.0,0.050832]
[1732524150183,0.050833,98257.0,98256.0,0.00013054]
[1732524150581,0.05363268,98257.0,98256.0,0.00013054]
[1732524150787,0.20605904,98257.0,98256.0,0.00013054]
[1732524151094,0.05363268,98257.0,98256.0,0.00013054]
[1732524151287,0.20599656,98257.0,98256.0,0.00013054]
[1732524152388,0.05363268,98257.0,98256.0,0.00013054]
[1732524152681,0.20599656,98257.0,98256.0,0.00013054]
[1732524154284,0.10307756,98257.0,98256.0,0.00013054]
[1732524156885,0.05363268,98257.0,98256.0,0.00013054]
[1732524158790,0.18619268,98257.0,98256.0,0.00013054]
[1732524158986,0.05363268,98257.0,98256.0,0.00013054]
[1732524159185,0.18619268,98257.0,98256.0,0.00013054]
[1732524160493,0.27747031,98257.0,98256.0,0.00013054]
[1732524161292,0.18619268,98257.0,98256.0,0.00013054]
[1732524161596,0.18705196,98257.0,98256.0,0.00013054]
[1732524162387,0.19722151,98257.0,98256.0,0.00013054]
[1732524162739,0.19722155,98257.0,98256.0,0.00013054]
[1732524162881,0.19722159,98257.0,98256.0,0.00013054]
[1732524164832,0.55802159,98257.0,98256.0,0.00013054]
[1732524166294,0.71022186,98257.0,98256.0,0.00013054]
[1732524166598,0.70005223,98257.0,98256.0,0.00013054]
[1732524166796,0.71032382,98257.0,98256.0,0.00013054]
[1732524167196,0.55812355,98257.0,98256.0,0.00013054]
[1732524167490,0.71985625,98257.0,98256.0,0.00013054]
[1732524169494,0.71984479,98257.0,98256.0,0.00013054]
[1732524169790,0.56764452,98257.0,98256.0,0.00013054]
[1732524170253,0.36445896,98257.0,98256.0,0.00013054]
[1732524170392,0.38430323,98257.0,98256.0,0.00013054]
[1732524173789,0.02350323,98257.0,98256.0,0.00013054]
[1732524173991,0.02355035,98257.0,98256.0,0.00013054]
[1732524174453,0.02363331,98257.0,98256.0,0.3041768]
[1732524174597,0.02363331,98257.0,98256.0,0.3550108]
[1732524174908,0.01544485,98257.0,98256.0,0.05096454]
[1732524175500,0.01544485,98257.0,98256.0,0.3544503]
[1732524176101,0.01544485,98257.0,98256.0,0.63963365]
[1732524176298,0.01544485,98257.0,98256.0,0.33614789]
[1732524179002,0.00505897,98257.0,98256.0,0.33614789]
[1732524179793,0.00505897,98257.0,98256.0,0.63953693]
[1732524179998,0.0152792,98257.0,98256.0,0.35435358]
[1732524180196,0.0152792,98257.0,98256.0,0.05096454]
[1732524181402,0.01529933,98257.0,98256.0,0.05096454]
[1732524181794,0.37609933,98257.0,98256.0,0.05096454]
[1732524182104,0.37609933,98257.0,98256.0,0.29367168]
[1732524183595,0.37609933,98257.0,98256.0,0.05096454]
[1732524185396,0.36585897,98257.0,98256.0,0.05096454]
[1732524185701,0.38582526,98257.0,98256.0,0.05096454]
[1732524189409,0.50762111,98257.0,98256.0,0.05096454]
[1732524190405,0.50762111,98257.0,98256.0,0.23302968]
[1732524191207,0.50762111,98257.0,98256.0,0.05096454]
[1732524191409,0.50762111,98257.0,98256.0,0.23302968]
[1732524192338,0.38582526,98257.0,98256.0,0.23302968]
[1732524192714,0.50770997,98257.0,98256.0,0.23302968]
[1732524193201,0.38582526,98257.0,98256.0,0.23302968]
[1732524193511,0.40298255,98257.0,98256.0,0.23302968]
[1732524193715,0.41933804,98257.0,98256.0,0.23302968]
[1732524194210,0.36585897,98257.0,98256.0,0.23302968]
[1732524194434,0.40316221,98257.0,98256.0,0.23302968]
[1732524194606,0.42032055,98257.0,98256.0,0.23302968]
[1732524194809,0.42032055,98257.0,98256.0,0.05096454]
[1732524195308,0.05952055,98257.0,98256.0,0.32667632]
[1732524195512,0.02600573,98257.0,98256.0,0.32667632]
[1732524195906,0.02600573,98257.0,98256.0,0.05096454]
[1732524196118,0.04236221,98257.0,98256.0,0.00013054]
[1732524196307,0.04236221,98257.0,98256.0,0.24293115]
[1732524196308,0.13378895,98257.0,98256.0,0.24293115]
[1732524196519,0.04254044,98257.0,98256.0,0.00013054]
[1732524197569,0.13399914,98257.0,98256.0,0.24296472]
[1732524197715,0.13399914,98257.0,98256.0,0.00013054]
[1732524197910,0.01578293,98257.0,98256.0,0.24296338]
[1732524198111,0.050834,98256.0,98253.0,0.22007492]
[1732524198314,0.411635,98254.0,98253.0,0.050835]
[1732524198516,0.46633796,98254.0,98253.0,0.050835]
[1732524198816,0.47139693,98254.0,98253.0,0.050835]
[1732524199218,0.47139693,98254.0,98253.0,0.05094981]
[1732524201117,0.42056193,98254.0,98253.0,0.05094981]
[1732524202111,0.51199828,98254.0,98253.0,0.05094981]
[1732524202311,0.42056193,98254.0,98253.0,0.05094981]
[1732524203219,0.51199173,98254.0,98253.0,0.05094981]
[1732524203416,0.48516837,98254.0,98253.0,0.05094981]
[1732524203626,0.42157051,98254.0,98253.0,0.05094981]
[1732524207056,0.42210879,98254.0,98253.0,0.05094981]
[1732524207321,0.39422649,98254.0,98253.0,0.05094981]
[1732524207523,0.39531732,98254.0,98253.0,0.05094981]
[1732524207720,0.42228523,98254.0,98253.0,0.05094981]
[1732524207928,0.40568959,98254.0,98253.0,0.05094981]
[1732524209026,0.4217327,98254.0,98253.0,0.05094981]
[1732524209612,0.51314733,98254.0,98253.0,0.05094981]
[1732524209815,0.4217327,98254.0,98253.0,0.05094981]
[1732524210927,0.42085717,98254.0,98253.0,0.05094981]
[1732524211826,0.420858,98254.0,98253.0,0.05094981]
[1732524212031,0.40481776,98254.0,98253.0,0.05094981]
[1732524212522,0.13543408,98254.0,98253.0,0.05094981]
[1732524212722,0.027074,98254.0,98253.0,0.05094981]
[1732524213527,0.01648415,98254.0,98253.0,0.32563625]
[1732524213924,0.01648415,98254.0,98253.0,0.45799625]
[1732524214225,0.006459,98254.0,98253.0,0.45799625]
[1732524214930,0.01612919,98254.0,98253.0,0.45799625]
[1732524215436,0.01610159,98254.0,98253.0,0.45799625]
[1732524215631,0.0262797,98254.0,98253.0,0.45799625]
[1732524215922,0.0262797,98254.0,98253.0,0.76116135]
[1732524216122,0.0262797,98254.0,98253.0,0.48647491]
[1732524216325,0.0262797,98254.0,98253.0,0.76245496]
[1732524216826,0.0262797,98254.0,98253.0,0.76247396]
[1732524217019,0.0262797,98254.0,98253.0,0.48647491]
[1732524217222,0.0262797,98254.0,98253.0,0.45994253]
[1732524218718,0.02627286,98254.0,98253.0,0.45994253]
[1732524219218,0.02627286,98254.0,98253.0,0.32758253]
[1732524222524,0.01664796,98254.0,98253.0,0.32758253]
[1732524222784,0.01616759,98254.0,98253.0,0.32758253]
[1732524225227,0.01616759,98254.0,98253.0,0.05094981]
[1732524226135,0.006459,98254.0,98253.0,0.05094981]
[1732524231433,0.006459,98254.0,98253.0,0.18318981]
[1732524232034,0.01598441,98254.0,98253.0,0.18318981]
[1732524232230,0.01598441,98254.0,98253.0,0.46070243]
[1732524233535,0.02610584,98254.0,98253.0,0.46070243]
[1732524233742,0.01598134,98254.0,98253.0,0.46070243]
[1732524233935,0.02615016,98254.0,98253.0,0.46070243]
[1732524237834,0.01598134,98254.0,98253.0,0.46070243]
[1732524238037,0.02613721,98254.0,98253.0,0.46070243]
[1732524238538,0.02613721,98254.0,98253.0,0.32846243]
[1732524238740,0.02753724,98254.0,98253.0,0.46070243]
[1732524238940,0.02764822,98254.0,98253.0,0.46070243]
[1732524239563,0.02764822,98254.0,98253.0,0.8258692]
[1732524239940,0.02764822,98254.0,98253.0,0.46070243]
[1732524240245,0.02764822,98254.0,98253.0,0.18318981]
[1732524241139,0.02780466,98254.0,98253.0,0.18318981]
[1732524242440,0.02780466,98254.0,98253.0,0.54398981]
[1732524243654,0.02780466,98254.0,98253.0,0.41174981]
[1732524243944,0.02780466,98254.0,98253.0,0.05094981]
[1732524244648,0.02795172,98254.0,98253.0,0.05094981]
[1732524245145,0.14996024,98254.0,98253.0,0.05094981]
[1732524245344,0.02795172,98254.0,98253.0,0.05094981]
[1732524245949,0.14996621,98254.0,98253.0,0.05094981]
[1732524247040,0.02795172,98254.0,98253.0,0.05094981]
[1732524247239,0.02795172,98254.0,98253.0,0.32712603]
[1732524248049,0.02795172,98254.0,98253.0,0.32712837]
[1732524248247,0.01762028,98254.0,98253.0,0.32712837]
[1732524248443,0.02790648,98254.0,98253.0,0.32712837]
[1732524248638,0.48020919,98254.0,98253.0,0.32712837]
[1732524248844,0.38870648,98254.0,98253.0,0.32712837]
[1732524249240,0.38870648,98254.0,98253.0,0.63079798]
[1732524250140,0.38870648,98254.0,98253.0,0.35461942]
[1732524250750,0.38870648,98254.0,98253.0,0.05094981]
[1732524251454,0.38870648,98254.0,98253.0,0.35461942]
[1732524251846,0.38870648,98254.0,98253.0,0.05094981]
[1732524252255,0.38864679,98254.0,98253.0,0.05094981]
[1732524252447,0.38864679,98254.0,98253.0,0.35461942]
[1732524252448,0.02784679,98254.0,98253.0,0.35461942]
[1732524252654,0.02784679,98254.0,98253.0,0.6313524]
[1732524252855,0.02784679,98254.0,98253.0,0.32768279]
[1732524253146,0.02784679,98254.0,98253.0,0.63120653]
[1732524253364,0.02784679,98254.0,98253.0,0.32768279]
[1732524253745,0.02784679,98254.0,98253.0,0.63121168]